[Event "9th Floripa Open 2023"]
[Site "Florianopolis"]
[Date "2023.01.26"]
[Round "5.5"]
[White "Mekhitarian, Krikor Sevag"]
[Black "Pires, Marcos Vinicius Tors"]
[Result "1-0"]
[ECO "D15"]
[WhiteElo "2551"]
[BlackElo "2238"]
[Annotator "TA"]
[PlyCount "97"]
[EventDate "2023.01.23"]
[EventType "swiss"]
[EventCountry "BRA"]
[SourceTitle "playchess.com"]
[Source "ChessBase"]
[SourceQuality "1"]
[TimeControl "5400+30"]

{[%evp 10,97,15,27,26,29,51,49,55,39,95,77,75,65,91,86,81,68,193,208,193,184,229,208,192,165,217,128,161,132,121,125,123,124,140,133,214,218,255,253,254,229,296,287,302,268,252,277,275,258,393,395,435,426,419,415,500,522,619,450,437,373,345,350,415,425,403,352,558,548,487,483,699,690,1113,1095,4937,4937,6382,2669,6103,6103,5110,2648,2469,3106,29980,29980,29980,29981]} 1. d4 {[%emt 0:01:16]} d5 {[%emt 0:01:24]} 2. c4 {[%emt 0:00:02]} c6 {[%emt 0:01:29]} 3. Nf3 {[%emt 0:00:05]} Nf6 {[%emt 0:00:13]} 4. e3 {[%emt 0:00:06]} a6 {[%emt 0:03:20]} 5. Nc3 {[%emt 0:00:10]} Bf5 {[%emt 0:00:40]} 6. Qb3 {[%emt 0:00:11]} Ra7 {[%emt 0:01:15] D15: Slav Defence: 4 Nc3 a6 and gambit lines after 4 Nc3 dxc4.} 7. Nh4 {[%emt 1:32:10]} Be4 {[%emt 0:02:34]} 8. f3 {[%emt 0:00:00][%cal Bf2f3,Bf3e4,Be4e5][%mdl 32]} Bg6 {[%emt 0:03:29] [#] White is slightly better.} 9. e4 $146 {[%emt 0:00:00]} ({Predecessor:} 9. a4 e6 10. a5 Nbd7 11. Bd2 Bd6 12. Be2 Ne4 13. Nxe4 Bxe4 14. g3 Bg6 15. Nxg6 hxg6 {1-0 Bogner,S (2571)-Le,T (2501) Titled Tuesday intern op 14th April blitz 2020 (5)}) 9... dxe4 {[%emt 0:07:50]} (9... dxc4 $14 10. Qxc4 (10. Bxc4 b5 $11) 10... e6) 10. Nxg6 {[%emt 0:00:00]} hxg6 {[%emt 0:00:10]} 11. Be3 {[%emt 0:00:00]} e6 {[%emt 0:18:36]} 12. O-O-O {[%emt 0:00:00]} (12. Nxe4 Nxe4 13. fxe4 Qh4+ 14. Kd2 Nd7 $11) 12... Nbd7 {[%emt 0:09:39]} 13. fxe4 {[%emt 0:00:00] aiming for Kb1.} Qa5 {[%emt 0:11:28]} (13... Ng4 $14 14. Bg1 Qg5+ 15. Kb1 Ne3) 14. e5 $18 {[%emt 0:00:00]} Ng4 {[%emt 0:01:35] [#]} 15. Bg1 {[%emt 0:00:00]} Ra8 {[%emt 0:11:19]} 16. Be2 {[%emt 0:00:00]} (16. Qxb7 $2 Rb8 $19) 16... Nh6 {[%emt 0:02:12]} 17. g4 {[%emt 0:00:00]} (17. Qxb7 $2 Rb8 $19) 17... Be7 {[%emt 0:03:47]} (17... Qb6 $142 18. Qxb6 Nxb6) 18. Be3 {[%emt 0:00:00]} (18. Qxb7 Rb8 19. Qxc6 Ba3 $17) (18. h3 $18) 18... O-O {[%emt 0:01:11]} 19. Ne4 {[%emt 0:00:00]} (19. Qxb7 Rab8 20. Qxd7 Ba3 $11) 19... c5 {[%emt 0:01:20]} 20. d5 {[%emt 0:00:00] Black must now prevent Bd2.} (20. Qxb7 $2 {loses.} Rab8 21. Bd2 (21. Qxd7 $2 Qxa2 $19) 21... Qxa2 $19) 20... exd5 {[%emt 0:01:47]} 21. Rxd5 {[%emt 0:00:00]} Qc7 {[%emt 0:00:23]} 22. Bf4 $36 {[%emt 0:00:00][%mdl 2048] And now Rf1 would win. White is really pushing. White is much more active.} Rfd8 {[%emt 0:01:01]} (22... Nb6 $16 {might work better.}) 23. Rf1 {[%emt 0:00:00][%cal Oe5e6] [#] e6! would be deadly.} Qc6 {[%emt 0:02:13]} 24. Qf3 {[%emt 0:00:00] Bxh6 is the strong threat.} Qe6 {[%emt 0:00:45]} 25. Rfd1 {[%emt 0:00:00]} Nf8 {[%emt 0:01:37]} 26. Nxc5 {[%emt 0:00:00][%cal Be4c5,Bc5b7,Bb7d6][%mdl 32]} Qb6 {[%emt 0:01:04]} 27. Rxd8 {[%emt 0:00:00]} Rxd8 {[%emt 0:00:11]} 28. Rxd8 {[%emt 0:00:00]} ({And not} 28. Nxb7 Rb8 29. Be3 Qxb7 30. Qxb7 Rxb7 $11) 28... Qxd8 {[%emt 0:00:34]} 29. Nxb7 {[%emt 0:00:00]} Qd7 {[%emt 0:00:49]} (29... Qd4 $142 30. Nd6 Ne6) 30. Qd5 {[%emt 0:01:05]} ({Don't play} 30. Nd6 Ne6 31. Be3 Qd8 $18) 30... Qa4 {[%emt 0:00:52]} 31. Kb1 {[%emt 0:01:34]} Ne6 {[%emt 0:00:19]} 32. Bd2 {[%emt 0:01:49]} Kh7 {[%emt 0:01:15]} 33. Nd6 {[%emt 0:00:40]} Bg5 {[%emt 0:00:53]} 34. b3 {[%emt 0:03:45]} Qa3 {[%emt 0:01:06]} 35. Qa5 {[%emt 0:00:55]} Qxa5 {[%emt 0:00:55]} 36. Bxa5 {[%emt 0:00:02]} Bf4 {[%emt 0:00:38]} 37. Bc3 {[%emt 0:00:08]} Bxh2 {[%emt 0:00:13]} 38. Ne4 {[%emt 0:00:05]} Ng8 {[%emt 0:00:28]} (38... Nf4 {was called for.}) 39. c5 {[%emt 0:00:05]} Ne7 {[%emt 0:00:05]} 40. Bxa6 {[%emt 0:00:45]} Nc6 {[%emt 0:01:01]} (40... Nd5 $142 41. Bb2 Kg8) 41. Bc4 {[%emt 0:00:28]} Bxe5 {[%emt 0:03:03]} 42. Bxe5 {[%emt 0:00:06]} Nxe5 {[%emt 0:00:04]} 43. Bxe6 {[%emt 0:00:03][%cal Ob3b4] Threatens to win with b4!} fxe6 {[%emt 0:00:06][%mdl 4096] Endgame KN-KN} 44. b4 {[%emt 0:00:09]} Kg8 {[%emt 0:00:11]} 45. b5 {[%emt 0:00:22]} Kf8 {[%emt 0:00:08]} 46. a4 {[%emt 0:02:12] White threatens g5 and mate.} Ke7 {[%emt 0:00:25]} 47. g5 {[%emt 0:00:06] Intending Kc2 and mate.} Kd7 {[%emt 0:00:23]} 48. Kc2 {[%emt 0:00:05]} Kc7 {[%emt 0:01:08]} 49. Kc3 {[%emt 0:00:14] Weighted Error Value: White=0.16 (very precise) /Black=0.51} 1-0

[Event "9th Floripa Open 2023"]
[Site "Florianopolis"]
[Date "2023.01.26"]
[Round "5.6"]
[White "Barbosa, Evandro Amorim"]
[Black "Federzoni, Enzo"]
[Result "1-0"]
[ECO "B92"]
[WhiteElo "2482"]
[BlackElo "2123"]
[Annotator "TA"]
[PlyCount "88"]
[EventDate "2023.01.23"]
[EventType "swiss"]
[EventCountry "BRA"]
[SourceTitle "playchess.com"]
[Source "ChessBase"]
[SourceQuality "1"]
[TimeControl "5400+30"]

{[%evp 16,88,23,8,5,5,9,14,22,0,14,18,30,22,33,18,45,45,27,40,78,51,73,70,68,45,67,54,111,102,114,108,106,95,99,99,162,154,408,417,377,402,401,402,545,512,510,516,489,499,608,485,485,485,485,481,470,467,438,441,993,1028,930,562,704,646,625,605,599,526,526,525,514,497,602]} 1. e4 {[%emt 0:03:25]} c5 {[%emt 0:04:46]} 2. Nf3 {[%emt 0:00:17]} d6 {[%emt 0:00:04]} 3. d4 {[%emt 0:00:06]} cxd4 {[%emt 0:00:04]} 4. Nxd4 {[%emt 0:00:07]} Nf6 {[%emt 0:00:03]} 5. Nc3 {[%emt 0:00:07]} a6 {[%emt 0:00:03]} 6. Be2 {[%emt 0:00:26]} e5 {[%emt 0:00:04]} 7. Nb3 {[%emt 0:00:59]} Be7 {[%emt 0:00:11]} 8. O-O {[%emt 0:00:17]} O-O {[%emt 0:00:04]} 9. Re1 {[%emt 0:00:50]} Be6 {[%emt 0:04:24] B92: Sicilian Najdorf: 6 Be2.} 10. Bf3 {[%emt 0:01:14]} Nbd7 {[%emt 0:02:23]} 11. a4 {[%emt 0:01:07]} Rc8 {[%emt 0:02:43] The position is equal.} 12. a5 {[%emt 0:01:28]} Qc7 {[%emt 0:03:43]} 13. Be3 {[%emt 0:00:50]} Qb8 {[%emt 0:08:06]} 14. Nd2 {[%emt 0:06:49]} Bd8 {[%emt 0:13:25] [#]} 15. Qb1 $146 {[%emt 0:16:15]} ({Predecessor:} 15. Nf1 b6 16. axb6 Bxb6 17. Qc1 Bd4 18. Rxa6 Nc5 19. Ra3 Bxc3 20. Rxc3 Nfxe4 21. Bxe4 Nxe4 22. Rxc8 Rxc8 {½-½ Sasikiran,K (2656)-Drygalov,S (2473) Wch Rapid Moscow 2019 (12)}) 15... Qa8 {[%emt 0:07:18]} 16. Rd1 {[%emt 0:13:55]} b5 {[%emt 0:06:56]} 17. axb6 {[%emt 0:01:37]} Bxb6 {[%emt 0:02:41]} 18. Nf1 {[%emt 0:01:18]} Bxe3 {[%emt 0:02:56]} 19. Nxe3 {[%emt 0:00:10]} Qc6 {[%emt 0:01:58]} 20. Ra5 {[%emt 0:05:04]} Nc5 {[%emt 0:04:56]} 21. Qa1 {[%emt 0:06:19]} Ra8 {[%emt 0:02:23]} (21... Qb6 $14) 22. Qa3 {[%emt 0:12:21]} Rfb8 {[%emt 0:03:36]} 23. Ncd5 {[%emt 0:02:20] Dodges Qb6} Bxd5 {[%emt 0:06:24]} 24. exd5 {[%emt 0:00:17]} Qb7 {[%emt 0:03:35]} 25. Nc4 {[%emt 0:02:36]} e4 {[%emt 0:02:33] [#]} (25... Ne8 $16) 26. Be2 $1 $36 {[%emt 0:01:12][%mdl 2048] White has strong initiative.} (26. Nxd6 Qxb2 27. Qxb2 (27. Qxc5 exf3 28. Nf5 Ne4 $14) 27... Rxb2 $16) 26... Rd8 {[%emt 0:04:22] A mistake that costs the game.} (26... Qc7 $16 27. b4 (27. Nxd6 Nb7 $16) 27... Ncd7) 27. b4 {[%emt 0:01:38]} Ncd7 {[%emt 0:01:10][%cal Bc5d7,Bd7b6,Bb6c4,Bc4b2][%mdl 32]} 28. Nxd6 {[%emt 0:00:21]} Qc7 {[%emt 0:01:21]} 29. Nc4 {[%emt 0:00:35][%cal Bd6c4,Bc4e3,Be3d5][%mdl 32]} (29. Rxa6 Rxa6 30. Qxa6 Nb8 $15) 29... Nb6 {[%emt 0:00:27][%cal Rb6d5]} 30. Ne3 {[%emt 0:01:09] White is clearly winning.} (30. Rxa6 Rxa6 31. Qxa6 Nbxd5 $18) 30... Nfxd5 {[%emt 0:01:56]} 31. Nxd5 {[%emt 0:12:26]} Qxc2 {[%emt 0:00:04]} 32. Kf1 {[%emt 0:01:20]} (32. Rxa6 $2 Qxe2 33. Qa1 Rxa6 $19) 32... Nc4 {[%emt 0:02:38]} 33. Qa4 {[%emt 0:01:05]} Qxa4 {[%emt 0:00:38]} 34. Rxa4 {[%emt 0:00:06]} Nb2 {[%emt 0:00:13]} 35. Ne7+ {[%emt 0:00:57]} ({Not} 35. Rxa6 Nxd1 36. Rxa8 Rxa8 37. Bxd1 Ra2 $16) 35... Kf8 {[%emt 0:00:04]} 36. Rxd8+ {[%emt 0:00:08]} (36. Rxa6 $2 {is the wrong capture.} Rxd1+ 37. Bxd1 Rxa6 $19) 36... Rxd8 {[%emt 0:00:05]} 37. Nc6 {[%emt 0:01:14]} ({Weaker is} 37. Rxa6 Kxe7 38. b5 Nd3 $11) 37... Rd2 {[%emt 0:00:20]} (37... Nxa4 $142 38. Nxd8 Ke7 39. Nc6+ Kd6) 38. Rxa6 {[%emt 0:00:27] [#] Ra8+ would kill now.} f5 {[%emt 0:00:01]} 39. g3 {[%emt 0:01:46]} Rc2 {[%emt 0:00:21]} 40. Nd4 {[%emt 0:00:41]} Rc1+ {[%emt 0:00:12]} 41. Kg2 {[%emt 0:00:06]} Nd3 {[%emt 0:00:12]} 42. Bxd3 {[%emt 0:01:28]} exd3 {[%emt 0:00:02]} 43. Nf3 {[%emt 0:00:13] Against d2} Rb1 {[%emt 0:00:09]} 44. Rd6 {[%emt 0:00:38]} Kg8 {[%emt 0:12:56] Weighted Error Value: White=0.27 (precise) /Black=0.30} 1-0

[Event "9th Floripa Open 2023"]
[Site "Florianopolis"]
[Date "2023.01.26"]
[Round "5.7"]
[White "Lima, Darcy"]
[Black "Zacarias, M Ruben D"]
[Result "1-0"]
[ECO "E11"]
[WhiteElo "2439"]
[BlackElo "2176"]
[Annotator "TA"]
[PlyCount "139"]
[EventDate "2023.01.23"]
[EventType "swiss"]
[EventCountry "BRA"]
[SourceTitle "playchess.com"]
[Source "ChessBase"]
[SourceQuality "1"]
[TimeControl "5400+30"]

{[%evp 10,139,12,22,23,20,23,21,7,0,0,0,0,-18,-8,-8,-14,-11,9,-3,0,-25,11,9,9,9,17,10,11,0,0,0,0,-78,-73,-122,-122,-133,18,18,18,18,18,18,18,0,0,0,0,0,0,0,0,0,0,0,0,-12,0,0,0,0,0,0,0,0,0,0,0,0,0,0,0,0,0,0,0,0,0,0,0,0,37,0,0,0,0,0,0,0,0,0,0,0,337,219,702,457,791,854,712,241,663,235,1371,686,1402,0,175,175,167,0,46,0,1375,1132,29977,29978,29980,29979,29968,27,29980,29981,29981,29982,29982,29983,29985,29986,29990,29991]} 1. d4 {[%emt 0:00:05]} Nf6 {[%emt 0:00:06]} 2. c4 {[%emt 0:00:09]} e6 {[%emt 0:00:06]} 3. Nf3 {[%emt 0:00:31]} Bb4+ {[%emt 0:00:07]} 4. Bd2 {[%emt 0:00:08]} Qe7 {[%emt 0:00:06]} 5. g3 {[%emt 0:01:44]} Bxd2+ {[%emt 0:00:14]} 6. Qxd2 {[%emt 0:01:20]} Nc6 {[%emt 0:00:27] E11: Bogo-Indian.} 7. Nc3 {[%emt 0:00:11]} d5 {[%emt 0:00:14]} 8. Ne5 {[%emt 0:04:04]} dxc4 {[%emt 0:01:57] The position is equal.} 9. Nxc4 {[%emt 0:04:29]} O-O {[%emt 0:02:02]} 10. Bg2 {[%emt 0:00:05]} Rd8 {[%emt 0:00:42]} 11. e3 {[%emt 0:00:18]} e5 {[%emt 0:05:32][%cal Re5d4]} 12. d5 {[%emt 0:00:18]} e4 {[%emt 0:01:39][%cal Ob7b5] And now ...b5! would win.} 13. O-O {[%emt 0:06:58] [#]} Ne5 $146 {[%emt 0:02:38]} ({Predecessor:} 13... Bf5 14. Rac1 Ne5 15. Nxe5 Qxe5 16. Rfd1 c6 17. Qd4 Qxd4 18. Rxd4 cxd5 19. Rcd1 Rac8 20. h3 h5 {½-½ Sychev,K (2579)-Tregubov,P (2588) Skolkovo Russian Rapid GP 2019 (9)}) 14. Qd4 {[%emt 0:06:37]} Nc6 {[%emt 0:05:37]} 15. Qd2 {[%emt 0:04:33]} Ne5 {[%emt 0:00:18]} 16. Nxe5 {[%emt 0:11:35]} Qxe5 {[%emt 0:00:07]} 17. Qc2 {[%emt 0:02:21][%cal Rc3e4]} Bf5 {[%emt 0:02:38]} 18. Rfd1 {[%emt 0:01:39]} Nxd5 {[%emt 0:09:43]} 19. Nxe4 {[%emt 0:04:32]} (19. Bxe4 {seems wilder.} Nb4 20. Rxd8+ Rxd8 21. Rd1) 19... c6 {[%emt 0:08:10]} 20. Rd4 {[%emt 0:03:44]} Nf6 {[%emt 0:01:50]} 21. Rad1 {[%emt 0:07:00]} (21. Nxf6+ $11 {keeps the balance.} Qxf6 22. Qc5) 21... Rxd4 $1 $17 {[%emt 0:00:38]} 22. Rxd4 {[%emt 0:00:04]} (22. exd4 $142 Bxe4 23. dxe5 Bxc2 24. Rd2) 22... Nxe4 $1 {[%emt 0:00:35]} 23. Bxe4 {[%emt 0:00:05]} Bxe4 {[%emt 0:00:05]} (23... c5 $17 24. Ra4 b5 25. Bxf5 bxa4 26. Bxh7+ Kf8) 24. Rxe4 {[%emt 0:00:48][%mdl 4096] Endgame KQR-KQR} Qf6 {[%emt 0:00:20]} 25. Qb3 $36 {[%emt 0:04:45][%mdl 2048] White is pushing.} b6 {[%emt 0:05:36]} 26. Rf4 {[%emt 0:04:00]} Qe7 {[%emt 0:01:05]} 27. Qc4 {[%emt 0:02:07]} (27. Qa4 $5 {[%cal Ra4c6]}) 27... c5 {[%emt 0:06:26]} 28. Qd5 {[%emt 0:00:08]} Re8 {[%emt 0:00:08]} 29. a4 {[%emt 0:07:12]} g6 {[%emt 0:02:46]} 30. h4 {[%emt 0:02:03]} h5 {[%emt 0:04:17]} 31. g4 {[%emt 0:02:46]} hxg4 {[%emt 0:01:47]} (31... Qxh4 32. Qxf7+ Kh8 33. Qxe8+ Kh7 34. Rf7+ Kh6 35. Qh8+ (35. Rxa7 Qxg4+ 36. Kh2 Qh4+ 37. Kg2 Qg4+ 38. Kh2 Qh4+ 39. Kg2 Qg4+ 40. Kh2 $11) 35... Kg5 36. Qd8+ (36. Rxa7 Qxg4+ 37. Kh2 Qh4+ 38. Kg2 Qg4+ 39. Kh2 Qh4+ 40. Kg2 Qg4+ 41. Kf1 Qd1+ 42. Kg2 Qg4+ $11) 36... Kxg4 37. Rf4+ Kh3 38. Rxh4#) 32. Rxg4 {[%emt 0:01:58]} Qe6 {[%emt 0:03:17]} 33. Qf3 {[%emt 0:00:28]} Kg7 {[%emt 0:02:17]} 34. h5 {[%emt 0:00:13]} Rh8 {[%emt 0:01:03]} 35. hxg6 {[%emt 0:01:53]} fxg6 {[%emt 0:01:33]} 36. Re4 {[%emt 0:07:09]} Qf6 {[%emt 0:01:55]} 37. Rf4 {[%emt 0:00:10]} Qe7 {[%emt 0:00:43] Against Qb7} 38. e4 {[%emt 0:02:12]} Rh4 {[%emt 0:03:15]} 39. Kf1 {[%emt 0:01:28]} Rxf4 {[%emt 0:02:14]} 40. Qxf4 $11 {[%emt 0:00:01] KQ-KQ} Qd7 {[%emt 0:00:29]} 41. e5 {[%emt 0:00:23]} Qf7 {[%emt 0:12:10] Dodges Qf6+} 42. Qe4 {[%emt 0:00:52]} g5 {[%emt 0:02:16]} 43. Ke1 {[%emt 0:04:09]} Qe6 {[%emt 0:01:48]} 44. Kd2 {[%emt 0:00:16]} a5 {[%emt 0:02:41]} 45. Kc3 {[%emt 0:01:02]} Kf8 {[%emt 0:00:41]} 46. Qe3 {[%emt 0:01:07]} g4 {[%emt 0:01:11]} 47. Qf4+ {[%emt 0:01:05]} Ke7 {[%emt 0:00:55]} 48. Qe4 {[%emt 0:00:18]} Kd7 {[%emt 0:01:15]} 49. Kd2 {[%emt 0:00:21] Strongly threatening Ke3.} Ke7 {[%emt 0:00:33]} 50. Ke1 {[%emt 0:02:06]} Kf7 {[%emt 0:01:07]} 51. Kf1 {[%emt 0:00:23]} Kg7 $2 {[%emt 0:00:55][%mdl 8192]} (51... Qd7 $11) 52. Kg2 {[%emt 0:00:08]} Kh6 $2 {[%emt 0:00:24]} (52... Kf8 53. Kg3 Ke8) 53. Qe3+ {[%emt 0:01:32]} Kh5 {[%emt 0:02:51]} (53... Kg6 $142 54. Qf4 Qf5) 54. Kg3 $18 {[%emt 0:00:46]} Qe7 {[%emt 0:00:49]} 55. Qf4 $2 {[%emt 0:00:36]} (55. e6 {Intending Qe5+ and mate.} Qh4+ 56. Kg2) 55... Qh4+ {[%emt 0:00:39]} 56. Kg2 {[%emt 0:00:01] Hoping for e6.} Qh3+ $2 {[%emt 0:01:16]} (56... Kg6 57. Qe4+ Kh6 58. Qc6+ Kh7 59. Qc7+ (59. Qxb6 Qh3+ 60. Kg1 g3 $16) 59... Kg8 60. Qxb6 Qh3+ 61. Kg1 g3 62. Qg6+ (62. Qxa5 $2 Qh2+ 63. Kf1 Qxf2#) 62... Kf8 63. Qxg3 Qf5) 57. Kg1 {[%emt 0:00:01]} Qd3 {[%emt 0:00:29] Prevents Qf5+} 58. Qf7+ $2 {[%emt 0:00:14]} (58. e6 $1 $18 {[%cal Re6e7]}) 58... Kh4 $2 {[%emt 0:00:36]} (58... Qg6 $11 59. e6 Kg5) 59. Qf6+ {[%emt 0:00:11]} Kh5 {[%emt 0:00:12]} 60. Qf7+ {[%emt 0:01:07]} ({Weaker is} 60. Qxb6 Qd1+ 61. Kg2 Qd5+ 62. Kg1 Qd1+ 63. Kh2 g3+ 64. Kxg3 Qg4+ 65. Kh2 Qh4+ 66. Kg2 Qg4+ 67. Kf1 Qd1+ 68. Kg2 Qg4+ 69. Kh2 Qh4+ 70. Kg2 Qg4+ $11) (60. e6 $18 {White threatens e7 and mate.} Qd1+ 61. Kg2 Qd5+ 62. f3 Qd2+ 63. Kg3 Qe1+ 64. Kf4 Qd2+ 65. Ke4 (65. Kg3 Qe1+ 66. Kf4 Qc1+ 67. Ke4 Qc4+ 68. Ke5 Qd4+ 69. Kf5 Qd5+ 70. Kf4 Qd2+ 71. Ke4 Qe2+ 72. Kf4 Qd2+ $16) 65... Qe2+ 66. Kd5 gxf3 67. e7) 60... Kh4 $14 {[%emt 0:00:13]} 61. Qf4 $2 {[%emt 0:00:50][%mdl 8192]} (61. b3 $14) 61... Kh5 $1 $18 {[%emt 0:01:12] [#]} 62. e6 $1 {[%emt 0:00:17] Threatening mate with e7.} ({Not} 62. Qf7+ Kg5 $14) 62... Qe2 {[%emt 0:00:56] [#]} 63. Qf5+ $1 {[%emt 0:00:25]} Kh4 {[%emt 0:00:23]} 64. Qf6+ {[%emt 0:00:19]} Kh5 {[%emt 0:00:13]} 65. e7 $2 {[%emt 0:00:32]} (65. Kh2 {mates} g3+ {[%mdl 64] Decoy} 66. Kxg3 Qd3+ 67. Kh2 Qd6+ 68. Kg2 Qd5+ 69. f3 Qd3 70. Qe5+ Kh4 71. e7) 65... Qe1+ $2 {[%emt 0:00:31][%mdl 8192] This move loses the game for Black.} (65... g3 $11) 66. Kh2 {[%emt 0:01:06] White mates.} g3+ {[%emt 0:00:56]} 67. Kxg3 {[%emt 0:00:32]} Qg1+ {[%emt 0:00:49]} 68. Kf3 {[%emt 0:00:15]} Qd1+ {[%emt 0:00:16]} 69. Kg2 {[%emt 0:00:37]} Qd5+ {[%emt 0:01:25]} 70. Qf3+ {[%emt 0:02:08] Weighted Error Value: White=0.36/Black=0.24 (precise)} 1-0

[Event "9th Floripa Open 2023"]
[Site "Florianopolis"]
[Date "2023.01.26"]
[Round "5.8"]
[White "Saito, Vinicius"]
[Black "Rodriguez Vila, Andres"]
[Result "1/2-1/2"]
[ECO "C73"]
[WhiteElo "2138"]
[BlackElo "2435"]
[Annotator "TA"]
[PlyCount "125"]
[EventDate "2023.01.23"]
[EventType "swiss"]
[EventCountry "BRA"]
[SourceTitle "playchess.com"]
[Source "ChessBase"]
[SourceQuality "1"]
[TimeControl "5400+30"]

{[%evp 13,125,0,4,0,6,-14,-15,-12,-15,-22,-13,-33,-18,-30,-18,-20,0,-18,-11,-60,-34,-42,-39,-75,-16,-22,-16,-16,-20,-30,-28,-39,-29,-46,-41,-94,-78,-101,-75,-88,-73,-81,-55,-55,-55,-66,-47,-57,-57,-72,-72,-72,-72,-72,-72,-75,-83,-81,-79,-83,-72,-82,-79,-83,-75,-75,-80,-83,-66,-66,-31,-32,-32,-35,-35,-35,-35,-35,-32,-35,-31,-32,0,-37,-39,-78,-80,-80,-80,-91,-77,-89,-124,-131,-131,-139,-139,-146,0,0,0,-8,0,0,0,0,0,0,0,0,0,-8,-8,-8]} 1. e4 {[%emt 0:00:44]} e5 {[%emt 0:00:20]} 2. Nf3 {[%emt 0:00:30]} Nc6 {[%emt 0:00:04]} 3. Bb5 {[%emt 0:00:12]} a6 {[%emt 0:00:52]} 4. Ba4 {[%emt 0:00:10]} d6 {[%emt 0:00:04]} 5. Bxc6+ {[%emt 0:01:39]} bxc6 {[%emt 0:00:06]} 6. d4 {[%emt 0:00:14]} exd4 {[%emt 0:01:06]} 7. Nxd4 {[%emt 0:00:21]} c5 {[%emt 0:00:12] 7...c5 scores better than 7...Bd7.} 8. Nf3 {[%emt 0:07:28] C73: Ruy Lopez: Deferred Steinitz: 5 Bxc6+.} g6 {[%emt 0:01:06]} 9. Bg5 {[%emt 0:03:56]} f6 {[%emt 0:02:10]} 10. Bd2 {[%emt 0:01:01]} Bg7 {[%emt 0:00:16] [#]} 11. Bc3 $146 {[%emt 0:00:09]} ({Predecessor:} 11. Nc3 Ne7 12. O-O O-O 13. Qc1 Rb8 14. b3 f5 15. Qe1 fxe4 16. Qxe4 d5 17. Qh4 {0-1 Salakhova,G (2125)-Vajda,S (2155) Budapest FS02 IM (Women) 1994 (4)}) 11... Ne7 {[%emt 0:00:17]} 12. O-O {[%emt 0:00:38]} O-O {[%emt 0:00:07]} 13. Nbd2 {[%emt 0:04:24]} Be6 {[%emt 0:00:16]} 14. Re1 {[%emt 0:00:29]} Qd7 {[%emt 0:00:17]} 15. Qe2 {[%emt 0:08:08]} Rfe8 {[%emt 0:03:20]} 16. Rad1 {[%emt 0:01:46]} (16. Nc4 $11 {feels stronger.}) 16... Bf7 {[%emt 0:02:42]} ({Don't play} 16... Bxa2 17. b3 $16) 17. Qd3 {[%emt 0:08:44]} Qb5 {[%emt 0:00:44]} 18. b3 {[%emt 0:03:04]} Nc6 {[%emt 0:00:12]} ({Better is} 18... Qxd3 $17 19. cxd3 Nc6) 19. Nc4 $11 {[%emt 0:06:29]} Nb4 {[%emt 0:01:16]} (19... a5 $5 {[%cal Rc6b4]}) 20. Bxb4 {[%emt 0:03:59]} cxb4 {[%emt 0:03:43]} 21. Ne3 {[%emt 0:08:11]} Qxd3 {[%emt 0:01:49]} 22. cxd3 {[%emt 0:00:22]} a5 {[%emt 0:04:54]} 23. Rc1 {[%emt 0:02:55]} c5 {[%emt 0:00:10]} 24. Nc4 {[%emt 0:03:12]} (24. Nd2 $15) 24... Ra6 $17 {[%emt 0:00:11]} 25. h3 {[%emt 0:03:18]} Rd8 {[%emt 0:02:09]} 26. Red1 {[%emt 0:03:12]} Bh6 {[%emt 0:03:48]} 27. Rc2 {[%emt 0:06:25]} d5 {[%emt 0:00:41]} 28. exd5 {[%emt 0:01:45]} Bxd5 {[%emt 0:00:15]} 29. Ne3 {[%emt 0:00:41]} Bxf3 {[%emt 0:00:08]} 30. gxf3 {[%emt 0:00:01]} Bf8 {[%emt 0:00:11]} 31. Rcd2 {[%emt 0:00:34]} a4 {[%emt 0:04:16]} 32. d4 {[%emt 0:00:37]} axb3 {[%emt 0:00:06]} 33. axb3 {[%emt 0:00:05]} Ra3 {[%emt 0:00:07]} 34. dxc5 {[%emt 0:00:54]} Rxd2 {[%emt 0:05:07]} 35. Rxd2 {[%emt 0:00:06]} Bxc5 {[%emt 0:00:39][%mdl 4096] Endgame KRB-KRN} 36. Rd3 {[%emt 0:01:32]} Kf7 {[%emt 0:00:06]} 37. Kg2 {[%emt 0:00:44]} Ke6 {[%emt 0:00:09]} 38. f4 {[%emt 0:05:08]} Ra2 {[%emt 0:01:23]} 39. Kf3 {[%emt 0:00:34]} Rb2 {[%emt 0:00:35]} 40. Kg3 {[%emt 0:02:18]} h5 {[%emt 0:01:00]} 41. Kf3 {[%emt 0:00:41]} h4 {[%emt 0:03:45]} 42. Nd1 {[%emt 0:03:13]} Ra2 {[%emt 0:01:02]} 43. Ne3 {[%emt 0:01:45]} f5 {[%emt 0:01:11]} 44. Nd1 {[%emt 0:00:59]} Ra1 {[%emt 0:02:31]} 45. Ke2 {[%emt 0:00:34]} Rb1 {[%emt 0:02:37]} 46. Kf3 {[%emt 0:00:20]} Bd6 {[%emt 0:00:16]} 47. Ne3 {[%emt 0:01:27]} Rh1 {[%emt 0:00:25]} 48. Kg2 {[%emt 0:00:26] Dodges Rh2+} Rc1 {[%emt 0:00:06]} 49. Kf3 {[%emt 0:02:54]} Rc3 {[%emt 0:04:29]} 50. Rxc3 {[%emt 0:02:33]} bxc3 {[%emt 0:00:06] KB-KN} 51. Nc2 {[%emt 0:00:07]} Kd5 {[%emt 0:00:06]} 52. Ke3 {[%emt 0:02:02] [#]} Bc5+ $1 {[%emt 0:00:05]} 53. Kd3 {[%emt 0:01:10] Ne3+ would be deadly.} Bxf2 {[%emt 0:00:10]} 54. Nb4+ {[%emt 0:01:16]} Kc5 {[%emt 0:04:23]} 55. Nc2 {[%emt 0:00:14]} Bg1 {[%emt 0:00:21]} (55... Bg3 $17 56. Ke3 Bh2) 56. Kxc3 $11 {[%emt 0:01:09] The position is equal.} Bh2 {[%emt 0:00:18]} (56... Kd5 $5 57. Kd3 $8 Bf2 $11) 57. Nd4 {[%emt 0:00:22]} Kd5 {[%emt 0:00:58]} 58. Nf3 {[%emt 0:00:06][%csl LRh2,LRh4]} ({But not} 58. Ne2 $2 Ke4 59. b4 Ke3 $19) 58... Bxf4 {[%emt 0:06:18] [#] And now ...Ke4 would win.} (58... Bg3 $5 59. Kd3 $8 (59. Ne5 g5 $19) 59... Kc5 $11) 59. Nxh4 {[%emt 0:00:20]} Ke4 {[%emt 0:00:02] aiming for ...g5.} 60. Nxg6 {[%emt 0:00:20]} Bd6 {[%emt 0:00:04]} 61. h4 {[%emt 0:00:37] Strongly threatening h5.} f4 {[%emt 0:00:10]} 62. Nxf4 {[%emt 0:00:14]} Kxf4 {[%emt 0:45:13]} 63. Kd2 {[%emt 0:02:32] Weighted Error Value: White=0.08 (flawless) /Black=0.10 (very precise)} 1/2-1/2